[Event "Titled Tuesday Blitz May 9 Early 2023"]
[White "Van Baar, Esper"]
[Black "Sanchez, Robert"]
[WhiteFideId "1049321"]
[BlackFideId "2034360"]
[WhiteElo "2155"]
[BlackElo "1876"]
[Result "1-0"]
[Round "09"]
[TimeControl "180+2"]
[Date "2023.05.09"]
[WhiteClock "0:00:33"]
[BlackClock "0:01:52"]

1. e4 {[%clk 0:02:58]}  e6 {[%clk 0:02:56]} 2. Nf3 {[%clk 0:02:58]}  d5 {[%clk 0:02:56]} 3. exd5 {[%clk 0:02:58]}  exd5 {[%clk 0:02:56]} 4. d4 {[%clk 0:02:59]}  Bd6 {[%clk 0:02:54]} 5. h3 {[%clk 0:02:58]}  Ne7 {[%clk 0:02:54]} 6. Bd3 {[%clk 0:02:57]}  c6 {[%clk 0:02:55]} 7. O-O {[%clk 0:02:56]}  Qc7 {[%clk 0:02:55]} 8. c3 {[%clk 0:02:49]}  Bf5 {[%clk 0:02:55]} 9. Re1 {[%clk 0:02:37]}  Bxd3 {[%clk 0:02:51]} 10. Qxd3 {[%clk 0:02:38]}  O-O {[%clk 0:02:52]} 11. Nbd2 {[%clk 0:02:20]}  Nd7 {[%clk 0:02:51]} 12. Nf1 {[%clk 0:02:19]}  Nf6 {[%clk 0:02:51]} 13. Ne3 {[%clk 0:02:18]}  Ne4 {[%clk 0:02:51]} 14. c4 {[%clk 0:02:01]}  Nxf2 {[%clk 0:02:42]} 15. Kxf2 {[%clk 0:02:00]}  Bg3+ {[%clk 0:02:42]} 16. Kg1 {[%clk 0:02:01]}  Bxe1 {[%clk 0:02:43]} 17. Nxe1 {[%clk 0:02:01]}  dxc4 {[%clk 0:02:43]} 18. Qxc4 {[%clk 0:01:56]}  Rad8 {[%clk 0:02:42]} 19. Nf3 {[%clk 0:01:56]}  Nd5 {[%clk 0:02:42]} 20. Nxd5 {[%clk 0:01:55]}  Rxd5 {[%clk 0:02:42]} 21. Be3 {[%clk 0:01:55]}  Re8 {[%clk 0:02:41]} 22. Bf2 {[%clk 0:01:55]}  Qf4 {[%clk 0:02:37]} 23. Re1 {[%clk 0:01:48]}  Rxe1+ {[%clk 0:02:36]} 24. Bxe1 {[%clk 0:01:49]}  h6 {[%clk 0:02:37]} 25. Qe2 {[%clk 0:01:39]}  Kh7 {[%clk 0:02:25]} 26. Bd2 {[%clk 0:01:33]}  Qf5 {[%clk 0:02:24]} 27. Kh2 {[%clk 0:01:12]}  Rd6 {[%clk 0:02:17]} 28. Qe5 {[%clk 0:01:02]}  Qxe5+ {[%clk 0:02:16]} 29. dxe5 {[%clk 0:01:01]}  Rd5 {[%clk 0:02:12]} 30. Kg3 {[%clk 0:00:50]}  g5 {[%clk 0:02:09]} 31. h4 {[%clk 0:00:38]}  gxh4+ {[%clk 0:02:03]} 32. Kxh4 {[%clk 0:00:38]}  Kg6 {[%clk 0:02:03]} 33. Kg4 {[%clk 0:00:37]}  h5+ {[%clk 0:02:03]} 34. Kf4 {[%clk 0:00:36]}  h4 {[%clk 0:01:58]} 35. Nxh4+ {[%clk 0:00:36]}  Kh5 {[%clk 0:01:58]} 36. Nf3 {[%clk 0:00:36]}  Rd3 {[%clk 0:01:57]} 37. Bc3 {[%clk 0:00:34]}  Rd1 {[%clk 0:01:52]} 38. Kf5 {[%clk 0:00:33]} 1-0


[Site "https://www.chess.com"]

[Event "Titled Tuesday Blitz May 9 Early 2023"]
[White "Kiseljova, Marya"]
[Black "Nastase, Robert-Paul"]
[WhiteFideId "4155009"]
[BlackFideId "1221175"]
[WhiteElo "1831"]
[BlackElo "2175"]
[Result "0-1"]
[Round "09"]
[TimeControl "180+2"]
[Date "2023.05.09"]
[WhiteClock "0:00:00"]
[BlackClock "0:00:03"]

1. d4 {[%clk 0:03:00]}  d5 {[%clk 0:02:56]} 2. c4 {[%clk 0:03:01]}  e6 {[%clk 0:02:56]} 3. Nf3 {[%clk 0:03:01]}  c6 {[%clk 0:02:55]} 4. g3 {[%clk 0:03:01]}  dxc4 {[%clk 0:02:51]} 5. Bg2 {[%clk 0:03:02]}  b5 {[%clk 0:02:49]} 6. O-O {[%clk 0:03:00]}  Nf6 {[%clk 0:02:46]} 7. a4 {[%clk 0:03:00]}  Bb7 {[%clk 0:02:44]} 8. b3 {[%clk 0:02:59]}  cxb3 {[%clk 0:02:41]} 9. Qxb3 {[%clk 0:02:55]}  a6 {[%clk 0:02:10]} 10. axb5 {[%clk 0:02:48]}  cxb5 {[%clk 0:02:01]} 11. Nc3 {[%clk 0:02:30]}  Nbd7 {[%clk 0:01:50]} 12. Ba3 {[%clk 0:02:20]}  Bxa3 {[%clk 0:01:46]} 13. Qxa3 {[%clk 0:02:20]}  Qe7 {[%clk 0:01:46]} 14. Nxb5 {[%clk 0:01:59]}  Qxa3 {[%clk 0:01:25]} 15. Nxa3 {[%clk 0:01:58]}  Ke7 {[%clk 0:01:26]} 16. Rfb1 {[%clk 0:01:51]}  Be4 {[%clk 0:01:19]} 17. Rb2 {[%clk 0:01:50]}  Rhb8 {[%clk 0:01:15]} 18. Nc4 {[%clk 0:01:43]}  Rxb2 {[%clk 0:01:14]} 19. Nxb2 {[%clk 0:01:43]}  a5 {[%clk 0:01:12]} 20. Nc4 {[%clk 0:01:30]}  a4 {[%clk 0:01:12]} 21. Nfd2 {[%clk 0:01:26]}  Bxg2 {[%clk 0:01:09]} 22. Kxg2 {[%clk 0:01:27]}  Nd5 {[%clk 0:01:08]} 23. e3 {[%clk 0:01:23]}  N7b6 {[%clk 0:01:04]} 24. Na3 {[%clk 0:01:17]}  Rc8 {[%clk 0:01:00]} 25. Ne4 {[%clk 0:01:12]}  Nc4 {[%clk 0:00:53]} 26. Nc5 {[%clk 0:01:03]}  Ncb6 {[%clk 0:00:45]} 27. Nb5 {[%clk 0:00:56]}  Ra8 {[%clk 0:00:43]} 28. Kf3 {[%clk 0:00:51]}  Ra5 {[%clk 0:00:43]} 29. Na3 {[%clk 0:00:49]}  Nc7 {[%clk 0:00:36]} 30. Ke2 {[%clk 0:00:40]}  Na6 {[%clk 0:00:36]} 31. Nb7 {[%clk 0:00:34]}  Rh5 {[%clk 0:00:33]} 32. h4 {[%clk 0:00:33]}  g5 {[%clk 0:00:28]} 33. hxg5 {[%clk 0:00:32]}  Rxg5 {[%clk 0:00:29]} 34. Rb1 {[%clk 0:00:32]}  Nd5 {[%clk 0:00:27]} 35. Rh1 {[%clk 0:00:24]}  h5 {[%clk 0:00:26]} 36. Kf3 {[%clk 0:00:19]}  Nf6 {[%clk 0:00:25]} 37. Rb1 {[%clk 0:00:17]}  Ng4 {[%clk 0:00:24]} 38. Ke2 {[%clk 0:00:16]}  Rf5 {[%clk 0:00:22]} 39. f3 {[%clk 0:00:15]}  Nh2 {[%clk 0:00:17]} 40. e4 {[%clk 0:00:10]}  Rxf3 {[%clk 0:00:17]} 41. Nc4 {[%clk 0:00:09]}  Rxg3 {[%clk 0:00:14]} 42. Rb6 {[%clk 0:00:09]}  Nc7 {[%clk 0:00:13]} 43. Nc5 {[%clk 0:00:08]}  Ne8 {[%clk 0:00:11]} 44. Rb7+ {[%clk 0:00:08]}  Kf8 {[%clk 0:00:11]} 45. Nd7+ {[%clk 0:00:08]}  Kg7 {[%clk 0:00:11]} 46. Ra7 {[%clk 0:00:07]}  Rc3 {[%clk 0:00:08]} 47. Nce5 {[%clk 0:00:07]}  Nd6 {[%clk 0:00:06]} 48. Nc5 {[%clk 0:00:06]}  Rc2+ {[%clk 0:00:05]} 49. Kd3 {[%clk 0:00:05]}  Ra2 {[%clk 0:00:04]} 50. Nxe6+ {[%clk 0:00:05]}  Kf6 {[%clk 0:00:04]} 51. Nc5 {[%clk 0:00:05]}  a3 {[%clk 0:00:04]} 52. Kc3 {[%clk 0:00:04]}  Nb5+ {[%clk 0:00:04]} 53. Kb3 {[%clk 0:00:04]}  Rb2+ {[%clk 0:00:04]} 54. Ka4 {[%clk 0:00:01]}  Nxa7 {[%clk 0:00:03]} 55. Kxa3 {[%clk 0:00:00]}  Rb5 {[%clk 0:00:03]} 0-1


[Site "https://www.chess.com"]

[Event "Titled Tuesday Blitz May 9 Early 2023"]
[White "Ankudinova, Yelena"]
[Black "Ciuffoletti, Paolo"]
[WhiteFideId "13702114"]
[BlackFideId "807630"]
[WhiteElo "1937"]
[BlackElo "2143"]
[Result "1-0"]
[Round "09"]
[TimeControl "180+2"]
[Date "2023.05.09"]
[WhiteClock "0:00:06"]
[BlackClock "0:00:00"]

1. Nf3 {[%clk 0:03:00]}  d5 {[%clk 0:02:56]} 2. d4 {[%clk 0:03:00]}  Nf6 {[%clk 0:02:56]} 3. c4 {[%clk 0:02:59]}  c6 {[%clk 0:02:55]} 4. Qc2 {[%clk 0:02:54]}  dxc4 {[%clk 0:02:55]} 5. Qxc4 {[%clk 0:02:50]}  Bf5 {[%clk 0:02:55]} 6. Nbd2 {[%clk 0:02:41]}  e6 {[%clk 0:02:49]} 7. g3 {[%clk 0:02:41]}  Nbd7 {[%clk 0:02:42]} 8. Bg2 {[%clk 0:02:40]}  Be7 {[%clk 0:02:37]} 9. Nh4 {[%clk 0:02:36]}  Nb6 {[%clk 0:01:52]} 10. Qc3 {[%clk 0:02:17]}  Nfd5 {[%clk 0:01:49]} 11. Qf3 {[%clk 0:01:30]}  Bxh4 {[%clk 0:01:46]} 12. gxh4 {[%clk 0:01:29]}  Qxh4 {[%clk 0:01:46]} 13. e4 {[%clk 0:01:25]}  Bg4 {[%clk 0:01:41]} 14. Qg3 {[%clk 0:01:17]}  Qxg3 {[%clk 0:01:36]} 15. hxg3 {[%clk 0:01:17]}  Nb4 {[%clk 0:01:36]} 16. f3 {[%clk 0:01:12]}  Nc2+ {[%clk 0:01:22]} 17. Kd1 {[%clk 0:01:10]}  Nxa1 {[%clk 0:01:20]} 18. b3 {[%clk 0:00:58]}  O-O-O {[%clk 0:00:54]} 19. Bb2 {[%clk 0:00:57]}  e5 {[%clk 0:00:51]} 20. dxe5 {[%clk 0:00:46]}  Nxb3 {[%clk 0:00:42]} 21. axb3 {[%clk 0:00:44]}  Be6 {[%clk 0:00:41]} 22. Kc2 {[%clk 0:00:31]}  h5 {[%clk 0:00:34]} 23. f4 {[%clk 0:00:28]}  Bg4 {[%clk 0:00:31]} 24. e6 {[%clk 0:00:22]}  f6 {[%clk 0:00:18]} 25. f5 {[%clk 0:00:20]}  Na8 {[%clk 0:00:16]} 26. Rf1 {[%clk 0:00:17]}  Nc7 {[%clk 0:00:15]} 27. e5 {[%clk 0:00:17]}  fxe5 {[%clk 0:00:13]} 28. Bxe5 {[%clk 0:00:17]}  Nd5 {[%clk 0:00:12]} 29. Rf2 {[%clk 0:00:11]}  Ne3+ {[%clk 0:00:10]} 30. Kc3 {[%clk 0:00:10]}  Nxg2 {[%clk 0:00:09]} 31. Rxg2 {[%clk 0:00:10]}  Rd5 {[%clk 0:00:09]} 32. Bxg7 {[%clk 0:00:09]}  Rhd8 {[%clk 0:00:08]} 33. e7 {[%clk 0:00:07]}  Re8 {[%clk 0:00:02]} 34. f6 {[%clk 0:00:08]}  Bf5 {[%clk 0:00:02]} 35. f7 {[%clk 0:00:07]}  Rd3+ {[%clk 0:00:00]} 36. Kb4 {[%clk 0:00:06]} 1-0


[Site "https://www.chess.com"]

[Event "Titled Tuesday Blitz May 9 Early 2023"]
[White "Sadovsky, Artem"]
[Black "Hartikainen, Jarmo"]
[WhiteFideId "4155840"]
[BlackFideId "503134"]
[WhiteElo "2314"]
[BlackElo "2090"]
[Result "1-0"]
[Round "09"]
[TimeControl "180+2"]
[Date "2023.05.09"]
[WhiteClock "0:00:32"]
[BlackClock "0:00:00"]

1. Nf3 {[%clk 0:02:22]}  Nf6 {[%clk 0:02:58]} 2. e3 {[%clk 0:02:21]}  g6 {[%clk 0:02:58]} 3. b3 {[%clk 0:02:20]}  Bg7 {[%clk 0:02:58]} 4. Bb2 {[%clk 0:02:20]}  d6 {[%clk 0:02:58]} 5. c4 {[%clk 0:02:19]}  O-O {[%clk 0:02:57]} 6. Be2 {[%clk 0:02:19]}  e5 {[%clk 0:02:56]} 7. O-O {[%clk 0:02:18]}  Nbd7 {[%clk 0:02:55]} 8. Nc3 {[%clk 0:02:17]}  c6 {[%clk 0:02:53]} 9. d4 {[%clk 0:02:16]}  e4 {[%clk 0:02:45]} 10. Nd2 {[%clk 0:02:15]}  d5 {[%clk 0:02:45]} 11. cxd5 {[%clk 0:02:04]}  cxd5 {[%clk 0:02:44]} 12. f3 {[%clk 0:02:05]}  exf3 {[%clk 0:02:29]} 13. Bxf3 {[%clk 0:02:05]}  Nb6 {[%clk 0:02:28]} 14. a4 {[%clk 0:01:39]}  a5 {[%clk 0:02:22]} 15. Re1 {[%clk 0:01:39]}  Re8 {[%clk 0:02:20]} 16. Ba3 {[%clk 0:01:35]}  Bf5 {[%clk 0:02:11]} 17. Nb5 {[%clk 0:01:30]}  Bf8 {[%clk 0:01:30]} 18. Bxf8 {[%clk 0:01:27]}  Rxf8 {[%clk 0:01:30]} 19. Rc1 {[%clk 0:01:28]}  Rc8 {[%clk 0:01:26]} 20. Rxc8 {[%clk 0:01:25]}  Nxc8 {[%clk 0:01:18]} 21. g4 {[%clk 0:01:21]}  Be4 {[%clk 0:01:16]} 22. Bxe4 {[%clk 0:01:18]}  Nxe4 {[%clk 0:01:13]} 23. Nxe4 {[%clk 0:01:17]}  dxe4 {[%clk 0:01:14]} 24. Rf1 {[%clk 0:01:17]}  Qg5 {[%clk 0:00:55]} 25. Rf4 {[%clk 0:01:12]}  Ne7 {[%clk 0:00:22]} 26. Rxe4 {[%clk 0:01:10]}  f5 {[%clk 0:00:22]} 27. Re5 {[%clk 0:00:56]}  Nc6 {[%clk 0:00:12]} 28. Rc5 {[%clk 0:00:51]}  Qxe3+ {[%clk 0:00:11]} 29. Kg2 {[%clk 0:00:50]}  fxg4 {[%clk 0:00:12]} 30. Rc3 {[%clk 0:00:42]}  Rf2+ {[%clk 0:00:10]} 31. Kg1 {[%clk 0:00:42]}  Qf4 {[%clk 0:00:05]} 32. Rg3 {[%clk 0:00:36]}  Ne7 {[%clk 0:00:05]} 33. Rxg4 {[%clk 0:00:35]}  Qf3 {[%clk 0:00:06]} 34. Qxf3 {[%clk 0:00:35]}  Rxf3 {[%clk 0:00:06]} 35. Re4 {[%clk 0:00:33]}  Nd5 {[%clk 0:00:06]} 36. Re8+ {[%clk 0:00:32]}  Kf7 {[%clk 0:00:05]} 37. Nd6+ {[%clk 0:00:32]}  Kg7 {[%clk 0:00:04]} 38. Rb8 {[%clk 0:00:32]}  Rxb3 {[%clk 0:00:03]} 39. Nb5 {[%clk 0:00:32]}  Rb4 {[%clk 0:00:02]} 40. Rxb7+ {[%clk 0:00:31]}  Kf6 {[%clk 0:00:02]} 41. Rd7 {[%clk 0:00:32]}  Nf4 {[%clk 0:00:01]} 42. d5 {[%clk 0:00:32]}  Rxa4 {[%clk 0:00:01]} 43. d6 {[%clk 0:00:32]}  Rb4 {[%clk 0:00:02]} 44. Nc7 {[%clk 0:00:32]}  Rd4 {[%clk 0:00:00]} 45. Rxh7 {[%clk 0:00:32]} 1-0


[Site "https://www.chess.com"]

[Event "Titled Tuesday Blitz May 9 Early 2023"]
[White "Wessendorf, Thomas, Dr."]
[Black "Necula, Iulian"]
[WhiteFideId "4604270"]
[BlackFideId "1232380"]
[WhiteElo "2280"]
[BlackElo "1790"]
[Result "1-0"]
[Round "09"]
[TimeControl "180+2"]
[Date "2023.05.09"]
[WhiteClock "0:00:41"]
[BlackClock "0:00:03"]

1. e4 {[%clk 0:03:00]}  d6 {[%clk 0:03:00]} 2. d4 {[%clk 0:03:00]}  Nf6 {[%clk 0:02:59]} 3. Nc3 {[%clk 0:03:00]}  Nbd7 {[%clk 0:02:58]} 4. Nf3 {[%clk 0:02:59]}  e5 {[%clk 0:02:58]} 5. Bc4 {[%clk 0:02:59]}  Be7 {[%clk 0:02:58]} 6. O-O {[%clk 0:02:58]}  c6 {[%clk 0:02:58]} 7. a4 {[%clk 0:02:58]}  a5 {[%clk 0:02:58]} 8. Re1 {[%clk 0:02:57]}  Qc7 {[%clk 0:02:57]} 9. b3 {[%clk 0:02:49]}  h6 {[%clk 0:02:56]} 10. Ba3 {[%clk 0:02:47]}  Nf8 {[%clk 0:02:51]} 11. d5 {[%clk 0:02:43]}  Ng6 {[%clk 0:02:50]} 12. Qd2 {[%clk 0:02:15]}  O-O {[%clk 0:02:47]} 13. Rad1 {[%clk 0:02:12]}  Rd8 {[%clk 0:02:28]} 14. dxc6 {[%clk 0:02:07]}  bxc6 {[%clk 0:02:28]} 15. Bf1 {[%clk 0:01:49]}  Bg4 {[%clk 0:02:20]} 16. Qe3 {[%clk 0:01:46]}  Nf4 {[%clk 0:01:55]} 17. Ne2 {[%clk 0:01:41]}  Nxe2+ {[%clk 0:01:51]} 18. Bxe2 {[%clk 0:01:40]}  Rd7 {[%clk 0:01:34]} 19. h3 {[%clk 0:01:40]}  Bh5 {[%clk 0:01:33]} 20. Nh4 {[%clk 0:01:33]}  Bxe2 {[%clk 0:01:31]} 21. Qxe2 {[%clk 0:01:33]}  Rad8 {[%clk 0:01:27]} 22. Nf5 {[%clk 0:01:32]}  Bf8 {[%clk 0:01:25]} 23. Rd3 {[%clk 0:01:24]}  g6 {[%clk 0:01:16]} 24. Ng3 {[%clk 0:01:21]}  Kg7 {[%clk 0:01:14]} 25. Red1 {[%clk 0:01:19]}  Ne8 {[%clk 0:01:05]} 26. c4 {[%clk 0:01:16]}  Be7 {[%clk 0:00:52]} 27. Bb2 {[%clk 0:01:16]}  Bf6 {[%clk 0:00:50]} 28. Rf3 {[%clk 0:01:12]}  Re7 {[%clk 0:00:39]} 29. Re1 {[%clk 0:01:11]}  Re6 {[%clk 0:00:18]} 30. Rd3 {[%clk 0:01:09]}  Qe7 {[%clk 0:00:18]} 31. Nf1 {[%clk 0:01:07]}  Bg5 {[%clk 0:00:15]} 32. Nh2 {[%clk 0:01:06]}  Bf4 {[%clk 0:00:14]} 33. g3 {[%clk 0:01:05]}  Bg5 {[%clk 0:00:15]} 34. h4 {[%clk 0:01:05]}  Bf6 {[%clk 0:00:15]} 35. Ng4 {[%clk 0:01:06]}  h5 {[%clk 0:00:15]} 36. Nxf6 {[%clk 0:01:04]}  Qxf6 {[%clk 0:00:16]} 37. Rf3 {[%clk 0:01:04]}  Qe7 {[%clk 0:00:16]} 38. Bc1 {[%clk 0:01:04]}  Rf6 {[%clk 0:00:15]} 39. Bg5 {[%clk 0:01:04]}  Qe6 {[%clk 0:00:15]} 40. Bxf6+ {[%clk 0:01:04]}  Nxf6 {[%clk 0:00:15]} 41. Rd1 {[%clk 0:01:03]}  Rd7 {[%clk 0:00:15]} 42. Rfd3 {[%clk 0:01:02]}  Ne8 {[%clk 0:00:14]} 43. Kg2 {[%clk 0:01:00]}  Qe7 {[%clk 0:00:14]} 44. f3 {[%clk 0:01:00]}  Qe6 {[%clk 0:00:14]} 45. Qd2 {[%clk 0:01:00]}  Qe7 {[%clk 0:00:14]} 46. Qxa5 {[%clk 0:01:00]}  f5 {[%clk 0:00:11]} 47. Qe1 {[%clk 0:00:59]}  f4 {[%clk 0:00:11]} 48. gxf4 {[%clk 0:00:58]}  exf4 {[%clk 0:00:11]} 49. e5 {[%clk 0:00:57]}  d5 {[%clk 0:00:10]} 50. cxd5 {[%clk 0:00:56]}  c5 {[%clk 0:00:10]} 51. d6 {[%clk 0:00:56]}  Qe6 {[%clk 0:00:08]} 52. Qh1 {[%clk 0:00:53]}  Qxe5 {[%clk 0:00:08]} 53. Re1 {[%clk 0:00:52]}  Qf5 {[%clk 0:00:06]} 54. Qh3 {[%clk 0:00:51]}  Qxh3+ {[%clk 0:00:05]} 55. Kxh3 {[%clk 0:00:51]}  Nf6 {[%clk 0:00:06]} 56. Re7+ {[%clk 0:00:48]}  Kf8 {[%clk 0:00:05]} 57. Rxd7 {[%clk 0:00:48]}  Nxd7 {[%clk 0:00:06]} 58. a5 {[%clk 0:00:48]}  Ke8 {[%clk 0:00:06]} 59. Rd5 {[%clk 0:00:45]}  Kd8 {[%clk 0:00:06]} 60. Rg5 {[%clk 0:00:45]}  Nf8 {[%clk 0:00:05]} 61. Rxc5 {[%clk 0:00:43]}  Kd7 {[%clk 0:00:06]} 62. a6 {[%clk 0:00:43]}  Kxd6 {[%clk 0:00:06]} 63. Ra5 {[%clk 0:00:41]}  Nd7 {[%clk 0:00:05]} 64. a7 {[%clk 0:00:42]}  Nb6 {[%clk 0:00:05]} 65. a8=Q {[%clk 0:00:41]}  Nxa8 {[%clk 0:00:03]} 66. Rxa8 {[%clk 0:00:41]} 1-0


[Site "https://www.chess.com"]

[Event "Titled Tuesday Blitz May 9 Early 2023"]
[White "Panico, Nick"]
[Black "Lakshmi C"]
[WhiteFideId "2026724"]
[BlackFideId "25035347"]
[WhiteElo "1982"]
[BlackElo "1942"]
[Result "1-0"]
[Round "09"]
[TimeControl "180+2"]
[Date "2023.05.09"]
[WhiteClock "0:00:33"]
[BlackClock "0:00:00"]

1. f4 {[%clk 0:03:00]}  d5 {[%clk 0:02:54]} 2. Nf3 {[%clk 0:03:00]}  c5 {[%clk 0:02:54]} 3. e3 {[%clk 0:02:59]}  Nc6 {[%clk 0:02:55]} 4. Bb5 {[%clk 0:02:59]}  Bd7 {[%clk 0:02:54]} 5. O-O {[%clk 0:02:56]}  Nf6 {[%clk 0:02:53]} 6. b3 {[%clk 0:02:56]}  a6 {[%clk 0:02:52]} 7. Bxc6 {[%clk 0:02:56]}  Bxc6 {[%clk 0:02:52]} 8. Bb2 {[%clk 0:02:57]}  e6 {[%clk 0:02:53]} 9. Ne5 {[%clk 0:02:55]}  Bb5 {[%clk 0:02:53]} 10. d3 {[%clk 0:02:54]}  Nd7 {[%clk 0:02:49]} 11. Nd2 {[%clk 0:02:50]}  Nxe5 {[%clk 0:02:45]} 12. fxe5 {[%clk 0:02:49]}  Be7 {[%clk 0:02:45]} 13. Qg4 {[%clk 0:02:42]}  Bg5 {[%clk 0:02:42]} 14. Rae1 {[%clk 0:02:39]}  h5 {[%clk 0:02:39]} 15. Qf3 {[%clk 0:02:37]}  Qe7 {[%clk 0:02:35]} 16. Re2 {[%clk 0:02:25]}  g6 {[%clk 0:02:24]} 17. c4 {[%clk 0:01:57]}  Bc6 {[%clk 0:02:18]} 18. e4 {[%clk 0:01:58]}  d4 {[%clk 0:02:10]} 19. g3 {[%clk 0:01:56]}  h4 {[%clk 0:02:07]} 20. Qg4 {[%clk 0:01:44]}  hxg3 {[%clk 0:02:03]} 21. hxg3 {[%clk 0:01:45]}  Be3+ {[%clk 0:02:03]} 22. Kg2 {[%clk 0:01:44]}  O-O-O {[%clk 0:02:00]} 23. Nf3 {[%clk 0:01:42]}  Rdg8 {[%clk 0:01:48]} 24. Bc1 {[%clk 0:01:35]}  f5 {[%clk 0:01:48]} 25. exf6 {[%clk 0:01:35]}  Qxf6 {[%clk 0:01:46]} 26. Bxe3 {[%clk 0:01:34]}  dxe3 {[%clk 0:01:46]} 27. Ng5 {[%clk 0:01:25]}  Rh2+ {[%clk 0:01:16]} 28. Kxh2 {[%clk 0:01:19]}  Qxf1 {[%clk 0:01:12]} 29. Qxe6+ {[%clk 0:01:16]}  Kc7 {[%clk 0:01:09]} 30. Qf7+ {[%clk 0:01:11]}  Qxf7 {[%clk 0:01:07]} 31. Nxf7 {[%clk 0:01:12]}  Rf8 {[%clk 0:01:08]} 32. Ne5 {[%clk 0:01:10]}  Rf1 {[%clk 0:01:00]} 33. Kg2 {[%clk 0:01:06]}  Ra1 {[%clk 0:00:57]} 34. Nxc6 {[%clk 0:01:05]}  Kxc6 {[%clk 0:00:56]} 35. Kf3 {[%clk 0:01:05]}  b5 {[%clk 0:00:41]} 36. Kxe3 {[%clk 0:01:04]}  b4 {[%clk 0:00:41]} 37. Rf2 {[%clk 0:01:02]}  Kd7 {[%clk 0:00:37]} 38. Kf4 {[%clk 0:00:56]}  Ke6 {[%clk 0:00:35]} 39. Kg5 {[%clk 0:00:55]}  Rg1 {[%clk 0:00:31]} 40. g4 {[%clk 0:00:53]}  Ke5 {[%clk 0:00:29]} 41. Kxg6 {[%clk 0:00:46]}  Rxg4+ {[%clk 0:00:28]} 42. Kf7 {[%clk 0:00:46]}  Rg3 {[%clk 0:00:20]} 43. Rd2 {[%clk 0:00:43]}  Kd4 {[%clk 0:00:19]} 44. Ke6 {[%clk 0:00:43]}  Kc3 {[%clk 0:00:18]} 45. Rf2 {[%clk 0:00:43]}  Kxd3 {[%clk 0:00:15]} 46. Kd5 {[%clk 0:00:41]}  Ke3 {[%clk 0:00:12]} 47. Rh2 {[%clk 0:00:37]}  Rg5+ {[%clk 0:00:11]} 48. e5 {[%clk 0:00:38]}  Kf4 {[%clk 0:00:09]} 49. Kxc5 {[%clk 0:00:37]}  a5 {[%clk 0:00:08]} 50. Re2 {[%clk 0:00:34]}  Kf3 {[%clk 0:00:08]} 51. Re1 {[%clk 0:00:33]}  Kf2 {[%clk 0:00:09]} 52. Rd1 {[%clk 0:00:32]}  Rxe5+ {[%clk 0:00:08]} 53. Rd5 {[%clk 0:00:32]}  Re2 {[%clk 0:00:08]} 54. Kb5 {[%clk 0:00:32]}  Rxa2 {[%clk 0:00:08]} 55. c5 {[%clk 0:00:33]}  Ra3 {[%clk 0:00:05]} 56. c6 {[%clk 0:00:32]}  Rxb3 {[%clk 0:00:05]} 57. c7 {[%clk 0:00:31]}  Rc3 {[%clk 0:00:05]} 58. Rc5 {[%clk 0:00:32]}  Rxc5+ {[%clk 0:00:02]} 59. Kxc5 {[%clk 0:00:32]}  b3 {[%clk 0:00:00]} 60. c8=Q {[%clk 0:00:33]} 1-0


[Site "https://www.chess.com"]

[Event "Titled Tuesday Blitz May 9 Early 2023"]
[White "Carlsen, Magnus"]
[Black "Bluebaum, Matthias"]
[WhiteFideId "1503014"]
[BlackFideId "24651516"]
[WhiteElo "2852"]
[BlackElo "2639"]
[Result "1/2-1/2"]
[Round "10"]
[TimeControl "180+2"]
[Date "2023.05.09"]
[WhiteClock "0:00:03"]
[BlackClock "0:00:27"]

1. g3 {[%clk 0:03:00]}  d5 {[%clk 0:02:59]} 2. Nf3 {[%clk 0:02:48]}  Nf6 {[%clk 0:02:59]} 3. Bg2 {[%clk 0:02:42]}  e6 {[%clk 0:03:00]} 4. O-O {[%clk 0:02:40]}  Bd6 {[%clk 0:03:00]} 5. c4 {[%clk 0:02:37]}  O-O {[%clk 0:03:00]} 6. b3 {[%clk 0:02:32]}  Nc6 {[%clk 0:03:00]} 7. Bb2 {[%clk 0:02:32]}  d4 {[%clk 0:03:01]} 8. Nxd4 {[%clk 0:02:17]}  Nxd4 {[%clk 0:03:02]} 9. Bxd4 {[%clk 0:02:17]}  Bxg3 {[%clk 0:03:02]} 10. hxg3 {[%clk 0:02:17]}  Qxd4 {[%clk 0:03:03]} 11. Nc3 {[%clk 0:02:18]}  c6 {[%clk 0:03:02]} 12. e3 {[%clk 0:02:18]}  Qd3 {[%clk 0:03:03]} 13. Qe2 {[%clk 0:02:17]}  Qg6 {[%clk 0:03:04]} 14. d4 {[%clk 0:02:16]}  e5 {[%clk 0:03:04]} 15. dxe5 {[%clk 0:02:00]}  Ng4 {[%clk 0:03:05]} 16. f4 {[%clk 0:02:00]}  f6 {[%clk 0:03:04]} 17. Be4 {[%clk 0:01:49]}  Bf5 {[%clk 0:02:46]} 18. Bxf5 {[%clk 0:01:46]}  Qxf5 {[%clk 0:02:47]} 19. e4 {[%clk 0:01:37]}  Qh5 {[%clk 0:02:42]} 20. e6 {[%clk 0:01:35]}  Qc5+ {[%clk 0:02:42]} 21. Kh1 {[%clk 0:01:34]}  Qh5+ {[%clk 0:02:40]} 22. Kg2 {[%clk 0:01:30]}  f5 {[%clk 0:02:26]} 23. Rh1 {[%clk 0:01:02]}  Qg6 {[%clk 0:02:26]} 24. exf5 {[%clk 0:01:01]}  Rxf5 {[%clk 0:02:22]} 25. Rae1 {[%clk 0:00:54]}  Re8 {[%clk 0:02:21]} 26. Qe4 {[%clk 0:00:45]}  Nf6 {[%clk 0:02:16]} 27. Qd3 {[%clk 0:00:32]}  Nh5 {[%clk 0:01:49]} 28. Rh4 {[%clk 0:00:29]}  Rxe6 {[%clk 0:01:33]} 29. Rxe6 {[%clk 0:00:26]}  Qxe6 {[%clk 0:01:34]} 30. Ne4 {[%clk 0:00:18]}  h6 {[%clk 0:01:25]} 31. Kf3 {[%clk 0:00:06]}  Qg6 {[%clk 0:00:32]} 32. Rg4 {[%clk 0:00:03]}  Qe6 {[%clk 0:00:26]} 33. Rh4 {[%clk 0:00:02]}  Qg6 {[%clk 0:00:27]} 34. Rg4 {[%clk 0:00:03]}  Qe6 {[%clk 0:00:27]} 35. Rh4 {[%clk 0:00:03]} 1/2-1/2


[Site "https://www.chess.com"]

[Event "Titled Tuesday Blitz May 9 Early 2023"]
[White "Shimanov, Aleksandr"]
[Black "Rodshtein, Maxim"]
[WhiteFideId "4198603"]
[BlackFideId "2806851"]
[WhiteElo "2631"]
[BlackElo "2555"]
[Result "1-0"]
[Round "10"]
[TimeControl "180+2"]
[Date "2023.05.09"]
[WhiteClock "0:00:42"]
[BlackClock "0:00:15"]

1. e4 {[%clk 0:03:00]}  c5 {[%clk 0:02:59]} 2. d4 {[%clk 0:03:00]}  cxd4 {[%clk 0:02:59]} 3. Qxd4 {[%clk 0:03:01]}  Nc6 {[%clk 0:02:59]} 4. Qd3 {[%clk 0:03:01]}  g6 {[%clk 0:02:58]} 5. Nc3 {[%clk 0:03:01]}  Bg7 {[%clk 0:02:58]} 6. Nf3 {[%clk 0:03:02]}  d6 {[%clk 0:02:57]} 7. Be2 {[%clk 0:03:02]}  Nf6 {[%clk 0:02:56]} 8. O-O {[%clk 0:03:02]}  O-O {[%clk 0:02:57]} 9. Nd5 {[%clk 0:03:02]}  Bg4 {[%clk 0:02:49]} 10. c3 {[%clk 0:03:02]}  Nd7 {[%clk 0:02:46]} 11. Bg5 {[%clk 0:03:01]}  h6 {[%clk 0:02:44]} 12. Bh4 {[%clk 0:02:57]}  a6 {[%clk 0:02:40]} 13. Rad1 {[%clk 0:02:50]}  Re8 {[%clk 0:02:14]} 14. h3 {[%clk 0:02:48]}  Bxf3 {[%clk 0:02:13]} 15. Qxf3 {[%clk 0:02:49]}  Qb8 {[%clk 0:01:58]} 16. Bg3 {[%clk 0:02:03]}  Nde5 {[%clk 0:01:51]} 17. Qe3 {[%clk 0:02:02]}  b5 {[%clk 0:01:41]} 18. f4 {[%clk 0:01:49]}  Nc4 {[%clk 0:01:41]} 19. Bxc4 {[%clk 0:01:48]}  bxc4 {[%clk 0:01:42]} 20. Qe2 {[%clk 0:01:40]}  Ra7 {[%clk 0:01:36]} 21. f5 {[%clk 0:01:35]}  Rb7 {[%clk 0:01:33]} 22. Rd2 {[%clk 0:01:34]}  Ne5 {[%clk 0:01:17]} 23. Bxe5 {[%clk 0:01:01]}  Bxe5 {[%clk 0:01:14]} 24. fxg6 {[%clk 0:01:02]}  fxg6 {[%clk 0:01:13]} 25. Qg4 {[%clk 0:01:02]}  e6 {[%clk 0:00:45]} 26. Nf6+ {[%clk 0:00:59]}  Bxf6 {[%clk 0:00:36]} 27. Rxf6 {[%clk 0:01:00]}  Rg7 {[%clk 0:00:36]} 28. Rxg6 {[%clk 0:00:58]}  Qb6+ {[%clk 0:00:34]} 29. Kh1 {[%clk 0:00:54]}  Re7 {[%clk 0:00:30]} 30. Rxg7+ {[%clk 0:00:50]}  Rxg7 {[%clk 0:00:30]} 31. Qxe6+ {[%clk 0:00:51]}  Rf7 {[%clk 0:00:30]} 32. Rxd6 {[%clk 0:00:42]}  Qf2 {[%clk 0:00:18]} 33. Qg6+ {[%clk 0:00:42]}  Kf8 {[%clk 0:00:15]} 34. Rd8+ {[%clk 0:00:42]} 1-0


[Site "https://www.chess.com"]